fUSD/lending_fUSD_20260507
["ID","MTS","AMOUNT","RATE_DAILY","PERIOD"]
[421786258,1778154706000,-219.64,0.00013606,2]
[421786256,1778154706000,-2157.14243826,0.00013499,2]
[421786257,1778154706000,-248.62,0.00013555,2]
[421786267,1778154706000,-500.0,0.00014424,2]
[421786262,1778154706000,-200.0,0.00013699,2]
[421786264,1778154706000,-2236.95670848,0.00014047,2]
[421786265,1778154706000,-500.0,0.00014424,2]
[421786266,1778154706000,-500.0,0.00014424,2]
[421786260,1778154706000,-500.0,0.00013698,2]
[421786261,1778154706000,-500.0,0.00013698,2]
[421786263,1778154706000,-500.0,0.00013726,2]
[421786268,1778154706000,-500.0,0.00014424,2]
[421786270,1778154706000,-500.0,0.00014424,2]
[421786269,1778154706000,-500.0,0.00014424,2]
[421786272,1778154706000,-502.17716493,0.00014424,2]
[421786259,1778154706000,-2000.0,0.00013644,2]
[421786255,1778154706000,-248.62,0.00013247,2]
[421786241,1778154706000,-44944.44035534,0.00012937,2]
[421786246,1778154706000,-3137.8700627,0.00012959,2]
[421786220,1778154706000,-33496.6617999,0.00011891,2]
[421786221,1778154706000,-7309.57,0.00011938,2]
[421786223,1778154706000,-6163.32093304,0.00012018,2]
[421786222,1778154706000,-502.7990652,0.00011954,2]
[421786232,1778154706000,-217.06,0.00012506,2]
[421786224,1778154706000,-200.0,0.00012054,2]
[421786231,1778154706000,-337.27,0.00012504,2]
[421786229,1778154706000,-248.62,0.00012323,2]
[421786226,1778154706000,-2000.0,0.00012128,2]
[421786225,1778154706000,-150.0,0.00012118,2]
[421786228,1778154706000,-502.7990652,0.0001223,2]
[421786245,1778154706000,-173379.3575828,0.00012959,2]
[421786227,1778154706000,-157.86,0.00012139,2]
[421786233,1778154706000,-113860.49,0.00012506,2]
[421786234,1778154706000,-502.7990652,0.00012506,2]
[421786237,1778154706000,-460.20782943,0.00012699,2]
[421786244,1778154706000,-2907.10316565,0.00012958,2]
[421786236,1778154706000,-248.62,0.00012631,2]
[421786239,1778154706000,-1207.76532497,0.00012838,2]
[421786238,1778154706000,-263.50783151,0.00012838,2]
[421786235,1778154706000,-157.86,0.00012606,2]
[421786240,1778154706000,-2198.99553947,0.00012859,2]
[421786243,1778154706000,-2080.17592889,0.00012951,2]
[421786242,1778154706000,-248.62,0.00012939,2]
[421786230,1778154706000,-500.0,0.00012448,2]
[421786278,1778154706000,-500.0,0.00014697,2]
[421786253,1778154706000,-200.0,0.00013185,2]
[421786279,1778154706000,-500.0,0.00014697,2]
[421786305,1778154706000,-151.0,0.00015571,2]
[421786306,1778154706000,-285.970374,0.00015571,2]
[421786308,1778154706000,-151.0,0.00015571,2]
[421786307,1778154706000,-151.0,0.00015571,2]
[421786311,1778154706000,-151.0,0.00015628,2]
[421786309,1778154706000,-151.0,0.00015628,2]
[421786312,1778154706000,-151.0,0.00015628,2]
[421786310,1778154706000,-151.0,0.00015628,2]
[421786313,1778154706000,-151.0,0.00015628,2]
[421786315,1778154706000,-721.132858,0.00015628,2]
[421786316,1778154706000,-721.132858,0.00015628,2]
[421786304,1778154706000,-151.0,0.00015571,2]
[421786317,1778154706000,-721.132858,0.00015628,2]
[421786323,1778154706000,-151.0,0.00015628,2]
[421786322,1778154706000,-165.377612,0.00015628,2]
[421786320,1778154706000,-165.377612,0.00015628,2]
[421786318,1778154706000,-165.377612,0.00015628,2]
[421786319,1778154706000,-151.0,0.00015628,2]
[421786324,1778154706000,-165.377612,0.00015628,2]
[421786326,1778154706000,-151.0,0.000159,2]
[421786325,1778154706000,-151.0,0.00015628,2]
[421786328,1778154706000,-150.0,0.000159,2]
[421786327,1778154706000,-150.0,0.000159,2]
[421786273,1778154706000,-160.034,0.00014428,2]
[421786321,1778154706000,-151.0,0.00015628,2]
[421786302,1778154706000,-151.0,0.00015551,2]
[421786314,1778154706000,-721.132858,0.00015628,2]
[421786299,1778154706000,-2000.0,0.0001516,2]
[421786275,1778154706000,-18953.0,0.00014658,2]
[421786303,1778154706000,-151.0,0.00015571,2]
[421786276,1778154706000,-151.0,0.00014695,2]
[421786277,1778154706000,-500.0,0.00014697,2]
[421786274,1778154706000,-2319.72410669,0.00014595,2]
[421786282,1778154706000,-151.0,0.00014796,2]
[421786280,1778154706000,-351.15086072,0.00014697,2]
[421786283,1778154706000,-2189.729,0.00014853,2]
[421786287,1778154706000,-150.0,0.00015027,2]
[421786286,1778154706000,-150.0,0.00015025,2]
[421786291,1778154706000,-219.64,0.00015117,2]
[421786284,1778154706000,-1620.0,0.00014928,5]
[421786281,1778154706000,-310.0,0.00014795,3]
[421786288,1778154706000,-151.0,0.00015037,2]
[421786289,1778154706000,-165.7905639,0.00015048,2]
[421786298,1778154706000,-1942.51843438,0.00015143,2]
[421786300,1778154706000,-165.18,0.00015317,2]
[421786301,1778154706000,-150.0,0.00015397,2]
[421786296,1778154706000,-1000.0,0.00015124,2]
[421786294,1778154706000,-1000.0,0.00015124,2]
[421786297,1778154706000,-1000.0,0.00015124,2]
[421786292,1778154706000,-1000.0,0.00015124,2]
[421786293,1778154706000,-1000.0,0.00015124,2]
[421786285,1778154706000,-11342.33689846,0.00014989,2]
[421786290,1778154706000,-152.0,0.00015074,2]
[421786295,1778154706000,-1000.0,0.00015124,2]
[421786369,1778154707000,-151.0,0.000179,2]
[421786366,1778154707000,-165.377612,0.000179,2]
[421786365,1778154707000,-721.132858,0.000179,2]
[421786367,1778154707000,-151.0,0.000179,2]
[421786368,1778154707000,-165.377612,0.000179,2]
[421786363,1778154707000,-721.132858,0.000179,2]
[421786361,1778154707000,-151.0,0.000179,2]
[421786362,1778154707000,-721.132858,0.000179,2]
[421786370,1778154707000,-165.377612,0.000179,2]
[421786359,1778154707000,-151.0,0.000179,2]
[421786371,1778154707000,-151.0,0.000179,2]
[421786364,1778154707000,-721.132858,0.000179,2]
[421786373,1778154707000,-151.0,0.000179,2]
[421786383,1778154707000,-151.0,0.00018682,2]
[421786377,1778154707000,-5000.0,0.00018,2]
[421786374,1778154707000,-151.0,0.000179,2]
[421786376,1778154707000,-500.0,0.00018,2]
[421786378,1778154707000,-219.64,0.00018141,2]
[421786372,1778154707000,-165.377612,0.000179,2]
[421786380,1778154707000,-284.9,0.0001841,2]
[421786379,1778154707000,-2000.0,0.00018192,2]
[421786381,1778154707000,-1000.0,0.000185,3]
[421786384,1778154707000,-929.93,0.0001872,2]
[421786387,1778154707000,-500.0,0.00018925,2]
[421786386,1778154707000,-500.0,0.00018925,2]
[421786360,1778154707000,-151.0,0.000179,2]
[421786375,1778154707000,-151.0,0.000179,2]
[421786357,1778154707000,-151.0,0.000179,2]
[421786331,1778154707000,-9999.99,0.00016116,2]
[421786356,1778154707000,-151.0,0.000179,2]
[421786336,1778154707000,-151.0,0.00016438,2]
[421786333,1778154707000,-1281.0,0.00016266,5]
[421786388,1778154707000,-500.0,0.00018925,2]
[421786329,1778154707000,-150.43937878,0.000159,2]
[421786332,1778154707000,-168.63,0.00016255,2]
[421786330,1778154707000,-7167.63,0.00016116,2]
[421786335,1778154707000,-151.0,0.00016438,2]
[421786334,1778154707000,-154.721537,0.00016438,2]
[421786338,1778154707000,-299.378726,0.00016438,2]
[421786348,1778154707000,-3350.45,0.00017572,2]
[421786339,1778154707000,-219.64,0.00016629,2]
[421786341,1778154707000,-150.0,0.00016769,2]
[421786358,1778154707000,-151.0,0.000179,2]
[421786340,1778154707000,-2000.0,0.00016676,2]
[421786347,1778154707000,-354.12,0.000173,2]
[421786345,1778154707000,-200.0,0.00016962,2]
[421786342,1778154707000,-250.0,0.00016769,2]
[421786343,1778154707000,-150.0,0.00016769,2]
[421786344,1778154707000,-2198.99553942,0.00016879,2]
[421786350,1778154707000,-151.0,0.000179,2]
[421786349,1778154707000,-112649.20186736,0.000179,2]
[421786351,1778154707000,-151.0,0.000179,2]
[421786355,1778154707000,-151.0,0.000179,2]
[421786353,1778154707000,-151.0,0.000179,2]
[421786352,1778154707000,-151.0,0.000179,2]
[421786354,1778154707000,-151.0,0.000179,2]
[421786346,1778154707000,-200.0,0.00016963,2]
[421786385,1778154707000,-156.21,0.0001872,2]
[421786337,1778154707000,-151.0,0.00016438,2]
[421786391,1778154707000,-25482.28098729,0.00019,2]
[421786431,1778154707000,-150.0,0.00019834,2]
[421786420,1778154707000,-151.0,0.000198,2]
[421786418,1778154707000,-151.0,0.000198,2]
[421786421,1778154707000,-165.377612,0.000198,2]
[421786424,1778154707000,-151.0,0.000198,2]
[421786426,1778154707000,-151.0,0.000198,2]
[421786427,1778154707000,-165.377612,0.000198,2]
[421786428,1778154707000,-151.0,0.000198,2]
[421786425,1778154707000,-165.377612,0.000198,2]
[421786422,1778154707000,-151.0,0.000198,2]
[421786423,1778154707000,-165.377612,0.000198,2]
[421786432,1778154707000,-1000.0,0.000199,7]
[421786430,1778154707000,-151.0,0.000198,2]
[421786434,1778154707000,-721.132858,0.00019968,2]
[421786436,1778154707000,-721.132858,0.00019968,2]
[421786433,1778154707000,-721.132858,0.00019968,2]
[421786441,1778154707000,-1549.911321,0.0002,2]
[421786437,1778154707000,-725.74557617,0.00019986,2]
[421786443,1778154707000,-150.0,0.0002,2]
[421786439,1778154707000,-155.0,0.0002,12]
[421786438,1778154707000,-500.0,0.0002,3]
[421786440,1778154707000,-5000.0,0.0002,2]
[421786442,1778154707000,-17162.01778588,0.0002,2]
[421786446,1778154707000,-1179.0,0.0002,2]
[421786447,1778154707000,-163.0,0.0002,2]
[421786445,1778154707000,-1029.0,0.0002,2]
[421786435,1778154707000,-721.132858,0.00019968,2]
[421786429,1778154707000,-151.0,0.000198,2]
[421786444,1778154707000,-199.938051,0.0002,2]
[421786416,1778154707000,-151.0,0.000198,2]
[421786419,1778154707000,-151.0,0.000198,2]
[421786392,1778154707000,-1029.0,0.00019,2]
[421786390,1778154707000,-524.27757038,0.00019,2]
[421786389,1778154707000,-5000.0,0.00019,2]
[421786394,1778154707000,-154.0,0.00019,2]
[421786404,1778154707000,-1000.0,0.00019473,2]
[421786397,1778154707000,-500.0,0.00019178,2]
[421786393,1778154707000,-1179.0,0.00019,2]
[421786395,1778154707000,-2354.0,0.0001904,5]
[421786400,1778154707000,-156.373954,0.00019178,2]
[421786396,1778154707000,-500.0,0.00019117,2]
[421786399,1778154707000,-151.0,0.00019178,2]
[421786403,1778154707000,-299.892273,0.00019178,2]
[421786401,1778154707000,-151.0,0.00019178,2]
[421786382,1778154707000,-232.239016,0.0001862,7]
[421786398,1778154707000,-500.0,0.00019178,2]
[421786402,1778154707000,-151.0,0.00019178,2]
[421786406,1778154707000,-1000.0,0.00019473,2]
[421786417,1778154707000,-151.0,0.000198,2]
[421786411,1778154707000,-151.0,0.000198,2]
[421786415,1778154707000,-151.0,0.000198,2]
[421786413,1778154707000,-151.0,0.000198,2]
[421786412,1778154707000,-151.0,0.000198,2]
[421786410,1778154707000,-151.0,0.000198,2]
[421786408,1778154707000,-500.0,0.00019768,2]
[421786407,1778154707000,-1000.0,0.00019665,2]
[421786409,1778154707000,-150.0,0.00019769,2]
[421786405,1778154707000,-1000.0,0.00019473,2]
[421786414,1778154707000,-151.0,0.000198,2]
[421786474,1778154708000,-160.0,0.00021687,2]
[421786472,1778154708000,-3801.12340065,0.0002148,2]
[421786475,1778154708000,-214.63993676,0.00021687,2]
[421786479,1778154708000,-151.0,0.00021918,2]
[421786477,1778154708000,-5000.0,0.00021918,2]
[421786473,1778154708000,-200.0,0.00021679,2]
[421786478,1778154708000,-151.0,0.00021918,2]
[421786476,1778154708000,-150.0,0.00021834,2]
[421786480,1778154708000,-151.0,0.00021918,2]
[421786487,1778154708000,-151.0,0.00021918,2]
[421786482,1778154708000,-151.0,0.00021918,2]
[421786488,1778154708000,-245.85329,0.00021918,2]
[421786485,1778154708000,-151.0,0.00021918,2]
[421786486,1778154708000,-151.0,0.00021918,2]
[421786481,1778154708000,-151.0,0.00021918,2]
[421786489,1778154708000,-11588.57384299,0.00022,4]
[421786490,1778154708000,-300.0,0.00022,2]
[421786484,1778154708000,-151.0,0.00021918,2]
[421786491,1778154708000,-5000.0,0.00022,2]
[421786492,1778154708000,-151.0,0.00022,2]
[421786483,1778154708000,-151.0,0.00021918,2]
[421786471,1778154708000,-200.0,0.00021174,2]
[421786470,1778154708000,-200.0,0.00021174,2]
[421786468,1778154708000,-200.0,0.00021174,2]
[421786494,1778154708000,-151.0,0.00022,2]
[421786448,1778154708000,-1998.0,0.0002,2]
[421786450,1778154708000,-1500.0,0.00020021,2]
[421786449,1778154708000,-1500.0,0.00020021,2]
[421786454,1778154708000,-284.9,0.00020381,2]
[421786455,1778154708000,-1000.0,0.000205,2]
[421786457,1778154708000,-797.09072193,0.00020569,2]
[421786453,1778154708000,-1500.0,0.00020213,2]
[421786451,1778154708000,-460.99722472,0.00020021,2]
[421786465,1778154708000,-1179.0,0.00021,2]
[421786452,1778154708000,-150.0,0.00020114,2]
[421786461,1778154708000,-473.43551206,0.00021,3]
[421786463,1778154708000,-5000.0,0.00021,2]
[421786459,1778154708000,-150.0,0.00020834,2]
[421786460,1778154708000,-2198.99553942,0.00020898,2]
[421786462,1778154708000,-5000.0,0.00021,2]
[421786469,1778154708000,-200.0,0.00021174,2]
[421786464,1778154708000,-1029.0,0.00021,2]
[421786466,1778154708000,-5000.0,0.00021064,2]
[421786467,1778154708000,-200.0,0.00021174,2]
[421786458,1778154708000,-1500.0,0.00020761,2]
[421786456,1778154708000,-1005.54396773,0.00020569,2]
[421786504,1778154708000,-165.377612,0.00022,2]
[421786505,1778154708000,-151.0,0.00022,2]
[421786522,1778154708000,-284.9,0.00022353,2]
[421786527,1778154708000,-165.67,0.00022701,30]
[421786524,1778154708000,-200.0,0.00022526,2]
[421786528,1778154708000,-150.0,0.00022834,2]
[421786523,1778154708000,-215.39610183,0.00022407,2]
[421786526,1778154708000,-156.21,0.00022691,2]
[421786525,1778154708000,-929.93,0.00022691,2]
[421786530,1778154708000,-1029.0,0.00023,2]
[421786529,1778154708000,-5000.0,0.00023,2]
[421786520,1778154708000,-721.132858,0.00022297,2]
[421786539,1778154708000,-228.71424764,0.00024558,2]
[421786538,1778154708000,-284.9,0.00024324,2]
[421786533,1778154708000,-200.55980911,0.00023769,2]
[421786537,1778154708000,-1195.4007416,0.00024,2]
[421786531,1778154708000,-1179.0,0.00023,2]
[421786534,1778154708000,-150.0,0.00023834,2]
[421786536,1778154708000,-1045.15948779,0.00024,2]
[421786540,1778154708000,-150.0,0.00024658,2]
[421786541,1778154708000,-150.0,0.00024658,2]
[421786496,1778154708000,-197.581477,0.00022,2]
[421786535,1778154708000,-5000.0,0.00024,2]
[421786521,1778154708000,-721.132858,0.00022297,2]
[421786532,1778154708000,-200.0,0.00023373,2]
[421786517,1778154708000,-151.0,0.00022297,2]
[421786493,1778154708000,-151.0,0.00022,2]
[421786512,1778154708000,-151.0,0.00022297,2]
[421786506,1778154708000,-165.377612,0.00022,2]
[421786495,1778154708000,-151.0,0.00022,2]
[421786498,1778154708000,-151.0,0.00022,2]
[421786501,1778154708000,-1179.0,0.00022,2]
[421786497,1778154708000,-1029.0,0.00022,2]
[421786500,1778154708000,-151.0,0.00022,2]
[421786502,1778154708000,-165.377612,0.00022,2]
[421786503,1778154708000,-151.0,0.00022,2]
[421786499,1778154708000,-151.0,0.00022,2]
[421786508,1778154708000,-165.377612,0.00022,2]
[421786519,1778154708000,-721.132858,0.00022297,2]
[421786507,1778154708000,-151.0,0.00022,2]
[421786509,1778154708000,-188.051988,0.00022,2]
[421786510,1778154708000,-151.0,0.00022,2]
[421786513,1778154708000,-157.830296,0.00022297,2]
[421786514,1778154708000,-151.0,0.00022297,2]
[421786511,1778154708000,-151.0,0.00022,2]
[421786518,1778154708000,-721.132858,0.00022297,2]
[421786515,1778154708000,-151.0,0.00022297,2]
[421786516,1778154708000,-151.0,0.00022297,2]
[421786581,1778154709000,-2618.28711381,0.00025,30]
[421786590,1778154709000,-151.0,0.00025805,2]
[421786584,1778154709000,-188.05,0.00025523,2]
[421786578,1778154709000,-2198.99553942,0.00024918,2]
[421786589,1778154709000,-155.7367363,0.00025802,7]
[421786574,1778154709000,-193.577255,0.00024658,2]
[421786579,1778154709000,-188.05,0.00024946,7]
[421786572,1778154709000,-193.577255,0.00024658,2]
[421786570,1778154709000,-193.577255,0.00024658,2]
[421786583,1778154709000,-188.05,0.00025234,30]
[421786571,1778154709000,-193.577255,0.00024658,2]
[421786580,1778154709000,-5000.0,0.00025,2]
[421786582,1778154709000,-250.0,0.00025205,2]
[421786597,1778154709000,-151.0,0.00025805,2]
[421786585,1778154709000,-310.0,0.00025631,6]
[421786588,1778154709000,-151.0,0.00025766,7]
[421786586,1778154709000,-332.81043529,0.00025705,2]
[421786601,1778154709000,-151.0,0.00025805,2]
[421786591,1778154709000,-151.0,0.00025805,2]
[421786593,1778154709000,-151.0,0.00025805,2]
[421786595,1778154709000,-151.0,0.00025805,2]
[421786594,1778154709000,-151.0,0.00025805,2]
[421786592,1778154709000,-151.0,0.00025805,2]
[421786596,1778154709000,-151.0,0.00025805,2]
[421786599,1778154709000,-151.0,0.00025805,2]
[421786598,1778154709000,-151.0,0.00025805,2]
[421786573,1778154709000,-193.577255,0.00024658,2]
[421786587,1778154709000,-350.0,0.00025753,2]
[421786575,1778154709000,-188.05,0.00024658,2]
[421786551,1778154709000,-151.0,0.00024658,2]
[421786565,1778154709000,-193.577255,0.00024658,2]
[421786543,1778154709000,-151.0,0.00024658,2]
[421786542,1778154709000,-151.0,0.00024658,2]
[421786546,1778154709000,-151.0,0.00024658,2]
[421786545,1778154709000,-151.0,0.00024658,2]
[421786547,1778154709000,-151.0,0.00024658,2]
[421786544,1778154709000,-151.0,0.00024658,2]
[421786548,1778154709000,-151.0,0.00024658,2]
[421786549,1778154709000,-151.0,0.00024658,2]
[421786550,1778154709000,-151.0,0.00024658,2]
[421786553,1778154709000,-151.0,0.00024658,2]
[421786552,1778154709000,-151.0,0.00024658,2]
[421786564,1778154709000,-193.577255,0.00024658,2]
[421786563,1778154709000,-193.577255,0.00024658,2]
[421786555,1778154709000,-151.0,0.00024658,2]
[421786557,1778154709000,-217.495784,0.00024658,2]
[421786560,1778154709000,-193.577255,0.00024658,2]
[421786554,1778154709000,-151.0,0.00024658,2]
[421786559,1778154709000,-193.577255,0.00024658,2]
[421786558,1778154709000,-1000.0,0.00024658,2]
[421786556,1778154709000,-151.0,0.00024658,2]
[421786562,1778154709000,-193.577255,0.00024658,2]
[421786561,1778154709000,-193.577255,0.00024658,2]
[421786566,1778154709000,-193.577255,0.00024658,2]
[421786568,1778154709000,-193.577255,0.00024658,2]
[421786576,1778154709000,-484.69,0.00024658,2]
[421786577,1778154709000,-150.0,0.00024834,2]
[421786567,1778154709000,-193.577255,0.00024658,2]
[421786569,1778154709000,-193.577255,0.00024658,2]
[421786600,1778154709000,-151.0,0.00025805,2]
[421786610,1778154709000,-151.0,0.00025805,2]
[421786602,1778154709000,-215.211385,0.00025805,2]
[421786637,1778154709000,-188.05,0.00026676,7]
[421786633,1778154709000,-450.0,0.00026301,2]
[421786638,1778154709000,-150.0,0.00026834,2]
[421786639,1778154709000,-550.0,0.00026849,2]
[421786649,1778154709000,-1043.0,0.00027123,2]
[421786650,1778154709000,-320.0,0.00027123,2]
[421786640,1778154709000,-2000.0,0.000269,9]
[421786643,1778154709000,-2000.0,0.00027,2]
[421786642,1778154709000,-5000.0,0.00027,2]
[421786641,1778154709000,-188.05,0.00026964,30]
[421786644,1778154709000,-2563.26078,0.0002701,2]
[421786645,1778154709000,-1035.0,0.00027086,10]
[421786646,1778154709000,-501.0,0.00027123,2]
[421786647,1778154709000,-335.0,0.00027123,2]
[421786648,1778154709000,-1195.0,0.00027123,2]
[421786652,1778154709000,-199.0,0.00027123,2]
[421786662,1778154709000,-151.0,0.00027397,2]
[421786651,1778154709000,-279.0,0.00027123,2]
[421786653,1778154709000,-279.86369455,0.00027123,2]
[421786655,1778154709000,-174.0,0.00027123,2]
[421786661,1778154709000,-151.0,0.00027397,2]
[421786660,1778154709000,-151.0,0.00027397,2]
[421786656,1778154709000,-188.05,0.00027253,2]
[421786657,1778154709000,-1500.0,0.00027397,2]
[421786654,1778154709000,-243.0,0.00027123,2]
[421786658,1778154709000,-650.0,0.00027397,5]
[421786659,1778154709000,-300.0,0.00027397,2]
[421786635,1778154709000,-188.05,0.00026388,2]
[421786632,1778154709000,-284.9,0.00026296,2]
[421786603,1778154709000,-151.0,0.00025805,2]
[421786630,1778154709000,-522.37,0.00026099,30]
[421786636,1778154709000,-522.37,0.00026676,7]
[421786604,1778154709000,-151.0,0.00025805,2]
[421786606,1778154709000,-721.132858,0.00025805,2]
[421786607,1778154709000,-721.132858,0.00025805,2]
[421786609,1778154709000,-165.377612,0.00025805,2]
[421786608,1778154709000,-721.13286,0.00025805,2]
[421786612,1778154709000,-151.0,0.00025805,2]
[421786613,1778154709000,-165.377612,0.00025805,2]
[421786605,1778154709000,-721.132858,0.00025805,2]
[421786617,1778154709000,-193.577255,0.00025805,2]
[421786614,1778154709000,-151.0,0.00025805,2]
[421786616,1778154709000,-193.577255,0.00025805,2]
[421786618,1778154709000,-193.577255,0.00025805,2]
[421786611,1778154709000,-165.377612,0.00025805,2]
[421786626,1778154709000,-151.0,0.0002589,2]
[421786619,1778154709000,-193.577263,0.00025805,2]
[421786629,1778154709000,-38686.1638238,0.00026047,2]
[421786631,1778154709000,-188.05,0.00026099,30]
[421786627,1778154709000,-5642.77808667,0.00025947,2]
[421786628,1778154709000,-5000.0,0.00026,2]
[421786622,1778154709000,-188.05,0.00025811,7]
[421786634,1778154709000,-522.37,0.00026388,2]
[421786615,1778154709000,-165.377611,0.00025805,2]
[421786621,1778154709000,-522.37,0.00025811,7]
[421786625,1778154709000,-151.0,0.0002589,2]
[421786620,1778154709000,-2133.6737315,0.00025806,2]
[421786623,1778154709000,-150.0,0.00025834,2]
[421786624,1778154709000,-25783.49833712,0.0002589,5]
[421786687,1778154710000,-259.398188,0.00027397,2]
[421786696,1778154710000,-150.0,0.00027834,2]
[421786690,1778154710000,-500.0,0.00027397,5]
[421786689,1778154710000,-3056.64,0.00027397,10]
[421786691,1778154710000,-150.0,0.00027397,5]
[421786694,1778154710000,-188.05,0.00027541,7]
[421786693,1778154710000,-1561.01,0.000274,7]
[421786697,1778154710000,-750.0,0.00027945,5]
[421786692,1778154710000,-7503.51,0.000274,7]
[421786695,1778154710000,-188.05,0.0002783,30]
[421786707,1778154710000,-284.9,0.00028267,2]
[421786699,1778154710000,-5000.0,0.00028,2]
[421786698,1778154710000,-250.0,0.00027945,5]
[421786702,1778154710000,-150.15,0.00028,2]
[421786700,1778154710000,-214.63993676,0.00028,7]
[421786705,1778154710000,-188.05,0.00028118,2]
[421786706,1778154710000,-1561.01,0.000282,7]
[421786703,1778154710000,-150.15,0.00028,2]
[421786708,1778154710000,-800.0,0.0002834,2]
[421786683,1778154710000,-151.0,0.00027397,2]
[421786688,1778154710000,-3667.97,0.00027397,10]
[421786682,1778154710000,-151.0,0.00027397,2]
[421786670,1778154710000,-151.0,0.00027397,2]
[421786684,1778154710000,-288.555855,0.00027397,2]
[421786663,1778154710000,-151.0,0.00027397,2]
[421786666,1778154710000,-151.0,0.00027397,2]
[421786673,1778154710000,-151.0,0.00027397,2]
[421786664,1778154710000,-151.0,0.00027397,2]
[421786667,1778154710000,-151.0,0.00027397,2]
[421786672,1778154710000,-151.0,0.00027397,2]
[421786665,1778154710000,-151.0,0.00027397,2]
[421786669,1778154710000,-151.0,0.00027397,2]
[421786704,1778154710000,-10000.0,0.00028,30]
[421786680,1778154710000,-151.0,0.00027397,2]
[421786668,1778154710000,-151.0,0.00027397,2]
[421786675,1778154710000,-151.0,0.00027397,2]
[421786685,1778154710000,-7605.9,0.00027397,10]
[421786686,1778154710000,-151.0,0.00027397,2]
[421786674,1778154710000,-151.0,0.00027397,2]
[421786677,1778154710000,-151.0,0.00027397,2]
[421786678,1778154710000,-205.604569,0.00027397,2]
[421786676,1778154710000,-151.0,0.00027397,2]
[421786679,1778154710000,-151.0,0.00027397,2]
[421786681,1778154710000,-151.0,0.00027397,2]
[421786671,1778154710000,-151.0,0.00027397,2]
[421786709,1778154710000,-800.0,0.0002834,2]
[421786701,1778154710000,-214.63993676,0.00028,10]
[421786711,1778154710000,-800.0,0.0002834,2]
[421786733,1778154710000,-323.13,0.00028727,2]
[421786737,1778154710000,-150.0,0.00028754,2]
[421786739,1778154710000,-150.0,0.00028754,2]
[421786741,1778154710000,-189.0,0.00028754,2]
[421786743,1778154710000,-500.0,0.00028767,5]
[421786740,1778154710000,-150.0,0.00028754,2]
[421786744,1778154710000,-323.13,0.0002879,30]
[421786742,1778154710000,-323.13,0.00028759,7]
[421786745,1778154710000,-156.71,0.00028793,7]
[421786748,1778154710000,-323.13,0.00028822,2]
[421786749,1778154710000,-200.0,0.00028825,2]
[421786750,1778154710000,-200.0,0.00028825,2]
[421786747,1778154710000,-214.63993676,0.000288,10]
[421786746,1778154710000,-7503.51,0.000288,7]
[421786752,1778154710000,-200.0,0.00028825,2]
[421786754,1778154710000,-200.0,0.00028825,2]
[421786757,1778154710000,-150.0,0.00028834,2]